bitfinex-derivatives/quotes_BNBF0:USTF0_20250608
["timestamp","ask_amount","ask_price","bid_price","bid_amount"]
[1749392571349,1.09955156,651.28,650.23,0.30758347]
[1749392571554,2.29855623,651.28,650.23,0.30758347]
[1749392571754,1.19900724,651.27,650.23,0.30758347]
[1749392572056,3.3231995,651.28,650.23,0.30758347]
[1749392572254,2.29872518,651.27,650.23,0.30758347]
[1749392572653,1.19900672,651.27,650.23,0.30758347]
[1749392572848,2.12586692,651.28,650.23,0.30758347]
[1749392573052,2.29931985,651.27,650.23,0.30758347]
[1749392573254,1.19792597,651.26,650.23,0.30758347]
[1749392573551,3.3240006,651.28,650.23,0.30758347]
[1749392573754,2.29930051,651.27,650.23,0.30758347]
[1749392573956,3.3240006,651.27,650.23,0.30758347]
[1749392574157,2.29930051,651.26,650.23,0.30758347]
[1749392574554,1.19792484,651.25,650.23,0.30758347]
[1749392574755,2.30023248,651.25,650.23,0.30758347]
[1749392575057,1.10228153,651.24,650.23,0.30758347]
[1749392575258,1.02470009,651.24,650.23,0.30758347]
[1749392575656,1.10228145,651.24,650.23,0.30758347]
[1749392575860,2.30060532,651.28,650.23,0.30758347]
[1749392576360,1.51,651.29,650.23,0.30758347]
[1749392578858,0.26727084,651.3,650.23,0.30758347]
[1749392579457,3.09736038,651.3,650.23,0.30758347]
[1749392579661,2.30498247,651.29,650.23,0.30758347]
[1749392579858,2.30507462,651.28,650.23,0.30758347]
[1749392580162,2.30513886,651.27,650.23,0.30758347]
[1749392580361,2.22643027,651.26,650.27,2.28694497]
[1749392580562,3.33021176,651.25,650.27,2.28694497]
[1749392580760,2.12884931,651.24,650.26,2.28694497]
[1749392580958,2.12884931,651.23,650.26,2.28694497]
[1749392581157,2.12884931,651.22,650.23,0.30758347]
[1749392581462,2.12884931,651.21,650.23,2.59452844]
[1749392581661,1.02506782,651.2,650.23,2.59452844]
[1749392581961,0.26727084,651.3,650.23,2.59452844]
[1749392582161,2.92337768,651.3,650.23,2.59452844]
[1749392582359,1.02506782,651.29,650.23,2.59452844]
[1749392582558,0.26727084,651.3,650.24,2.28694497]
[1749392582762,1.362,651.28,650.23,2.59452844]
[1749392583363,4.11590351,651.28,650.24,2.28694497]
[1749392583562,3.85959609,651.27,650.24,2.28694497]
[1749392583860,2.22916085,651.26,650.25,2.28694497]
[1749392584064,2.13129313,651.25,650.25,2.28694497]
[1749392584262,1.02506782,651.24,650.25,2.28694497]
[1749392584565,3.86197909,651.27,650.26,2.28694497]
[1749392584762,3.33538206,651.26,650.26,2.28694497]
[1749392584966,2.13129549,651.25,650.26,2.28694497]
[1749392585167,1.02506782,651.24,650.26,2.28694497]
[1749392585366,3.33559816,651.27,650.28,2.28694497]
[1749392585562,2.22926321,651.26,650.28,2.28694497]
[1749392585762,2.13139564,651.25,650.28,2.28694497]
[1749392586063,1.02506782,651.24,650.28,2.28694497]
[1749392586261,3.86125113,651.27,650.28,2.28694497]
[1749392586462,3.33472251,651.26,650.29,2.28694497]
[1749392586663,2.13091289,651.25,650.29,2.28694497]
[1749392586864,1.02506782,651.24,650.29,2.28694497]
[1749392587167,1.02506782,651.27,650.31,2.28694497]
[1749392587363,2.2306431,651.27,650.31,2.28694497]
[1749392587561,2.23064098,651.26,650.32,2.28694497]
[1749392587765,1.55220719,651.25,650.32,2.28694497]
[1749392587963,2.23064921,651.27,650.32,2.28694497]
[1749392588261,2.75784261,651.27,650.32,2.28694497]
[1749392588462,0.5271934,651.26,650.33,2.28694497]
[1749392588867,0.52718502,651.26,650.33,2.28694497]
[1749392589064,1.55225752,651.27,650.33,2.28694497]
[1749392589269,2.75756536,651.27,650.33,2.28694497]
[1749392589468,0.52718543,651.26,650.34,2.28694497]
[1749392590169,2.23037993,651.27,650.34,2.28694497]
[1749392590465,1.7364458,651.26,650.35,2.28694497]
[1749392590665,1.73771546,651.26,650.35,2.28694497]
[1749392590867,0.527565,651.26,650.35,2.28694497]
[1749392591366,1.66882442,651.26,650.39,2.28694497]
[1749392591568,2.87892972,651.26,650.39,2.28694497]
[1749392591763,1.14127413,651.26,650.39,2.28694497]
[1749392592172,2.87878643,651.26,650.39,2.28694497]
[1749392592365,1.14127413,651.26,650.4,2.28694497]
[1749392592770,1.66874222,651.26,650.4,2.28694497]
[1749392593071,1.66879073,651.26,650.4,2.28694497]
[1749392593366,1.14127413,651.25,650.4,2.28694497]
[1749392593666,1.6687915,651.25,650.4,2.28694497]
[1749392594269,1.14127413,651.25,650.4,2.28694497]
[1749392594569,1.66891479,651.25,650.41,2.28694497]
[1749392594769,1.14127413,651.23,650.34,2.28694497]
[1749392595467,1.14127413,651.22,650.34,2.28694497]
[1749392595768,1.14127413,651.23,650.34,2.28694497]
[1749392596470,1.14127413,651.22,650.34,2.28694497]
[1749392596970,5.01240114,651.22,650.34,2.28694497]
[1749392597170,3.87112701,651.21,650.34,2.28694497]
[1749392597368,3.87112701,651.21,649.88,3.8359322]
[1749392597369,2.76306023,651.2,650.35,2.28694497]
[1749392597569,2.76288783,651.19,650.31,2.28694497]
[1749392597772,3.34255037,651.18,650.27,2.28694497]
[1749392597972,2.66074842,651.17,650.27,2.28694497]
[1749392598171,2.76278074,651.16,650.27,2.28694497]
[1749392598376,3.87042285,651.15,650.21,2.28694497]
[1749392598570,1.14127413,651.11,650.14,2.28694497]
[1749392598772,1.14127413,651.12,650.13,2.28694497]
[1749392599072,5.01098109,651.12,650.13,2.28694497]
[1749392599270,5.01095091,651.11,650.13,2.28694497]
[1749392599470,3.37562475,651.1,650.13,2.28694497]
[1749392599675,3.87293146,651.09,650.12,2.28694497]
[1749392599872,3.3443868,651.08,650.12,2.28694497]
[1749392600071,3.87294047,651.07,650.12,2.28694497]
[1749392600373,3.87294049,651.06,650.12,2.28694497]
[1749392600572,3.87016727,651.05,650.12,2.28694497]
[1749392600770,2.23495431,651.04,650.13,2.28694497]
[1749392600971,1.02506782,651.03,650.13,2.28694497]
[1749392601272,2.31690294,651.09,650.13,2.28694497]
[1749392601576,3.86994701,651.08,650.13,2.28694497]
[1749392601772,1.14127413,651.11,650.13,2.28694497]
[1749392601773,3.86993576,651.07,650.13,2.28694497]
[1749392601974,3.86993576,651.06,650.13,2.28694497]
[1749392602176,3.86993576,651.05,650.13,2.28694497]
[1749392602377,2.76292692,651.04,650.14,2.28694497]
[1749392602578,2.23324779,651.03,650.14,2.28694497]
[1749392602774,1.55297316,651.02,650.13,2.28694497]
[1749392602979,1.55297259,651.09,650.14,2.28694497]
[1749392603275,1.6691788,651.1,650.14,2.28694497]
[1749392603475,1.14127413,651.1,650.14,2.28694497]
[1749392604475,1.14127413,651.1,650.15,2.28694497]
[1749392604876,1.14127413,651.11,650.15,2.28694497]
[1749392605174,1.14127413,651.14,650.17,2.28694497]
[1749392605375,1.14127413,651.13,650.17,2.28694497]
[1749392605679,5.00705422,651.13,650.17,2.28694497]
[1749392605879,3.86578009,651.12,650.17,2.28694497]
[1749392606180,1.55277513,651.11,650.24,2.28694497]
[1749392606374,5.0069616,651.16,650.25,2.28694497]
[1749392606575,3.86569392,651.15,650.25,2.28694497]
[1749392606776,1.02506782,651.14,650.26,2.28694497]
[1749392606979,1.7344731,651.16,650.26,2.28694497]
[1749392607178,1.55252734,651.16,650.26,2.28694497]
[1749392607479,5.00703987,651.17,650.27,2.28694497]
[1749392607678,2.76010573,651.16,650.27,2.28694497]
[1749392607876,1.55252734,651.15,650.27,2.28694497]
[1749392608181,0.52747007,651.15,650.28,2.28694497]
[1749392608381,1.14127413,651.17,650.28,2.28694497]
[1749392608580,1.697,651.14,650.28,2.28694497]
[1749392609077,4.45708601,651.14,650.28,2.28694497]
[1749392609278,1.55253675,651.13,650.28,2.28694497]
[1749392609476,1.55253675,651.13,650.29,2.28694497]
[1749392609781,2.7605702,651.13,650.25,2.28694497]
[1749392609981,0.52767326,651.12,650.25,2.28694497]
[1749392610178,2.76057026,651.13,650.25,2.28694497]
[1749392610381,0.52767326,651.12,650.25,2.28694497]
[1749392610577,0.52767195,651.12,650.25,2.28694497]
[1749392610780,2.760566,651.13,650.25,2.28694497]
[1749392610979,0.52768084,651.12,650.25,2.28694497]
[1749392611181,0.52768083,651.12,650.25,2.28694497]
[1749392611484,0.52768248,651.12,650.25,2.28694497]
[1749392611881,1.02506782,651.13,650.26,2.28694497]
[1749392612080,1.55288658,651.13,650.25,2.28694497]
[1749392612284,2.76105768,651.13,650.25,2.28694497]
[1749392612484,0.5278211,651.12,650.26,2.28694497]
[1749392613185,1.02506782,651.13,650.26,2.28694497]
[1749392613386,0.52783478,651.13,650.26,2.28694497]
[1749392613683,1.55290919,651.13,650.26,2.28694497]
[1749392613882,2.76252258,651.13,650.29,2.28694497]
[1749392614086,0.5278921,651.12,650.29,2.28694497]
[1749392614283,2.76253503,651.13,650.29,2.28694497]
[1749392614582,1.73748632,651.12,650.28,2.28694497]
[1749392614780,1.55295992,651.12,650.28,2.28694497]
[1749392614986,0.52801246,651.12,650.29,2.28694497]
[1749392615181,3.37594963,651.13,650.33,2.28694497]
[1749392615385,0.52801314,651.12,650.33,2.28694497]
[1749392615684,0.52818202,651.12,650.33,2.28694497]
[1749392615881,1.14127413,651.12,650.34,2.28694497]
[1749392616482,2.16634195,651.12,650.34,2.28694497]
[1749392616682,1.02506782,651.11,650.27,2.28694497]
[1749392616982,1.02506782,651.1,650.27,2.28694497]
[1749392617184,2.76324536,651.13,650.27,2.28694497]
[1749392617483,1.02506782,651.12,650.27,2.28694497]
[1749392617682,1.02506782,651.11,650.27,2.28694497]
[1749392617887,1.02506782,651.1,650.27,2.28694497]
[1749392618186,0.5281827,651.12,650.27,2.28694497]
[1749392618187,1.02506782,651.11,650.27,2.28694497]
[1749392618383,1.02506782,651.1,650.27,2.28694497]
[1749392618588,1.02506782,651.11,650.27,2.28694497]
[1749392618788,1.02506782,651.1,650.27,2.28694497]
[1749392618984,2.23549281,651.12,650.27,2.28694497]
[1749392619185,1.02506782,651.11,650.27,2.28694497]
[1749392619389,1.02506782,651.1,650.27,2.28694497]
[1749392619684,1.55326028,651.12,650.3,2.28694497]
[1749392619887,1.02506782,651.11,650.3,2.28694497]
[1749392620089,1.02506782,651.1,650.29,2.28694497]
[1749392620389,1.02506782,651.11,650.3,2.28694497]
[1749392620688,1.02506782,651.1,650.3,2.28694497]
[1749392620887,2.76368809,651.12,650.29,2.28694497]
[1749392621086,1.55321926,651.11,650.3,2.28694497]
[1749392621290,1.02506782,651.1,650.29,2.28694497]
[1749392621686,1.02506782,651.11,650.29,2.28694497]
[1749392621892,1.02506782,651.1,650.29,2.28694497]
[1749392622091,1.02506782,651.11,650.29,2.28694497]
[1749392622290,1.02506782,651.1,650.29,2.28694497]
[1749392622491,1.02506782,651.12,650.29,2.28694497]
[1749392622691,1.02506782,651.11,650.29,2.28694497]
[1749392622893,1.02506782,651.1,650.29,2.28694497]
[1749392623094,1.02506782,651.11,650.29,2.28694497]
[1749392623293,1.02506782,651.1,650.29,2.28694497]
[1749392623597,1.02506782,651.09,650.29,2.28694497]
[1749392623793,2.76229164,651.12,650.29,2.28694497]
[1749392623997,2.23413073,651.11,650.29,2.28694497]
[1749392624196,1.55323023,651.1,650.29,2.28694497]
[1749392624493,1.02506782,651.09,650.29,2.28694497]
[1749392624692,1.55323023,651.11,650.29,2.28694497]
[1749392624998,1.02506782,651.1,650.29,2.28694497]
[1749392625192,1.02506782,651.09,650.29,2.28694497]
[1749392625493,1.55307994,651.11,650.29,2.28694497]
[1749392625694,1.02506782,651.1,650.29,2.28694497]
[1749392625891,1.02506782,651.09,650.29,2.28694497]
[1749392626097,1.55308066,651.11,650.29,2.28694497]
[1749392626292,1.02506782,651.1,650.29,2.28694497]
[1749392626497,1.02506782,651.09,650.29,2.28694497]
[1749392626696,1.14127413,651.1,650.36,2.28694497]
[1749392626896,1.14127413,651.1,650.37,2.28694497]
[1749392627097,1.14127413,651.11,650.37,2.28694497]
[1749392627693,1.14127413,651.1,650.37,2.28694497]
[1749392627897,2.69435086,651.1,650.37,2.28694497]
[1749392628099,0.52800891,651.09,650.37,2.28694497]
[1749392628294,1.14127413,651.1,650.37,2.28694497]
[1749392628796,2.69438178,651.1,650.37,2.28694497]
[1749392628998,0.52804114,651.09,650.37,2.28694497]
[1749392629194,1.14127413,651.1,650.37,2.28694497]
[1749392629594,2.69438309,651.1,650.37,2.28694497]
[1749392629799,0.52804114,651.09,650.37,2.28694497]
[1749392630004,1.14127413,651.1,650.38,2.28694497]
[1749392630196,1.14127413,651.09,650.39,2.28694497]
[1749392631499,1.66925313,651.09,650.39,2.28694497]
[1749392631699,1.14127413,651.09,650.39,2.28694497]
[1749392632295,1.66928519,651.09,650.39,2.28694497]
[1749392632597,1.14127413,651.09,650.39,2.28694497]
[1749392633497,1.66928712,651.09,650.4,2.28694497]
[1749392633695,1.14127413,651.09,650.4,2.28694497]
[1749392634900,1.14127413,651.09,650.39,2.28694497]
[1749392635701,2.69445485,651.09,650.39,2.28694497]
[1749392635896,1.14127413,651.09,650.39,2.28694497]
[1749392636297,2.167,651.08,650.39,2.28694497]
[1749392636501,1.02506782,651.07,650.39,2.28694497]
[1749392636698,1.02506782,651.07,650.4,2.28694497]
[1749392637802,4.33334195,651.08,650.39,2.28694497]
[1749392638005,1.0362666,651.07,650.39,2.28694497]
[1749392638199,3.31364091,651.08,650.39,2.28694497]
[1749392638399,1.0362666,651.07,650.39,2.28694497]
[1749392638697,1.0362666,651.07,650.37,2.28694497]
[1749392642506,1.5646302,651.07,650.37,2.28694497]
[1749392643004,1.5646302,651.07,650.38,2.28694497]
[1749392643208,1.0362666,651.07,650.38,2.28694497]
[1749392643409,1.56467183,651.07,650.38,2.28694497]
[1749392643609,1.14664091,651.05,650.25,2.28694497]
[1749392643805,1.14664091,651.03,650.22,2.28694497]
[1749392644110,1.0362666,651.02,650.22,2.28694497]
[1749392644409,1.0362666,651.01,650.21,2.28694497]
[1749392644612,1.0362666,651.0,650.21,2.28694497]
[1749392644910,1.0362666,650.99,650.2,2.28694497]
[1749392645110,1.0362666,650.98,650.21,2.28694497]
[1749392645306,1.0362666,650.97,650.21,2.28694497]
[1749392645505,1.0362666,650.96,650.2,2.28694497]
[1749392645705,1.56459129,651.0,650.2,2.28694497]
[1749392645910,1.0362666,650.99,650.2,2.28694497]
[1749392646107,1.0362666,650.98,650.2,2.28694497]
[1749392646410,1.0362666,650.97,650.2,2.28694497]
[1749392646612,1.0362666,650.96,650.2,2.28694497]
[1749392646805,1.0362666,650.99,650.2,2.28694497]
[1749392647005,1.0362666,650.98,650.2,2.28694497]
[1749392647210,3.92340577,651.01,650.25,2.28694497]
[1749392647507,3.92340577,651.0,650.25,2.28694497]
[1749392647711,1.56455383,650.99,650.25,2.28694497]
[1749392648010,1.0362666,650.98,650.25,2.28694497]
[1749392648206,1.0362666,650.97,650.25,2.28694497]
[1749392648410,1.56462513,650.99,650.25,2.28694497]
[1749392648610,1.0362666,650.98,650.25,2.28694497]
[1749392648812,1.56462563,651.0,650.25,2.28694497]
[1749392649009,1.0362666,650.99,650.25,2.28694497]
[1749392649208,1.74070419,651.0,650.25,2.28694497]
[1749392649209,1.0362666,650.98,650.25,2.28694497]
[1749392649412,1.0362666,650.97,650.25,2.28694497]
[1749392649612,1.0362666,650.98,650.25,2.28694497]
[1749392649913,1.0362666,650.97,650.25,2.28694497]
[1749392650213,1.0362666,650.98,650.25,2.28694497]
[1749392650409,1.0362666,650.97,650.25,2.28694497]
[1749392650713,1.56453043,650.98,650.25,2.28694497]
[1749392650910,1.0362666,650.97,650.25,2.28694497]
[1749392651113,1.56432164,650.98,650.25,2.28694497]
[1749392651311,1.0362666,650.97,650.24,2.28694497]
[1749392651513,1.0362666,650.98,650.24,2.28694497]
[1749392651708,1.0362666,650.97,650.25,2.28694497]
[1749392652010,2.7748073,651.0,650.25,2.28694497]
[1749392652212,1.56432096,650.99,650.25,2.28694497]
[1749392652415,1.0362666,650.98,650.25,2.28694497]
[1749392652811,1.0362666,650.97,650.25,2.28694497]
[1749392653011,1.0362666,650.98,650.25,2.28694497]
[1749392653215,1.0362666,650.97,650.25,2.28694497]
[1749392653512,1.56447359,650.99,650.25,2.28694497]
[1749392653709,1.56447359,650.99,650.31,2.28694497]
[1749392653710,1.0362666,650.98,650.31,2.28694497]
[1749392654215,1.56447294,650.98,650.31,2.28694497]
[1749392654614,1.0362666,650.97,650.31,2.28694497]
[1749392654910,0.52820634,650.97,650.32,2.28694497]
[1749392655116,1.14664091,650.98,650.32,2.28694497]
[1749392655513,1.0362666,650.97,650.32,2.28694497]
[1749392655710,1.56430525,650.97,650.31,2.28694497]
[1749392655912,2.71094616,650.97,650.31,2.28694497]
[1749392656113,1.14664091,650.97,650.31,2.28694497]
[1749392656315,1.14664091,650.98,650.32,2.28694497]
[1749392656516,1.0362666,650.97,650.31,2.28694497]
[1749392656714,1.56402918,650.97,650.32,2.28694497]
[1749392656913,1.56402989,650.97,650.32,2.28694497]
[1749392657112,1.56405214,650.97,650.32,2.28694497]
[1749392657313,2.71137822,650.97,650.31,2.28694497]
[1749392657617,1.1473303,650.97,650.31,2.28694497]
[1749392658214,1.03602116,650.96,650.31,2.28694497]
[1749392659120,1.1473303,650.97,650.31,2.28694497]
[1749392659314,1.03602116,650.96,650.31,2.28694497]
[1749392659815,1.1473303,650.97,650.31,2.28694497]
[1749392661620,1.03602116,650.96,650.31,2.28694497]
[1749392662718,1.56452663,650.96,650.31,2.28694497]
[1749392662917,1.03602116,650.96,650.31,2.28694497]
[1749392663121,1.56450486,650.96,650.31,2.28694497]
[1749392663521,1.03602116,650.96,650.31,2.28694497]
[1749392663917,1.56453377,650.96,650.31,2.28694497]
[1749392664122,1.03602116,650.96,650.31,2.28694497]
[1749392664320,1.56453736,650.96,650.31,2.28694497]
[1749392664924,1.56455671,650.96,650.31,2.28694497]
[1749392665225,1.03602116,650.96,650.31,2.28694497]
[1749392665425,1.03602116,650.96,650.29,2.28694497]
[1749392665721,1.03602116,650.97,650.29,2.28694497]
[1749392665920,1.03602116,650.96,650.29,2.28694497]
[1749392666122,1.03602116,650.97,650.29,2.28694497]
[1749392666324,1.03602116,650.96,650.29,2.28694497]
[1749392666522,1.56464367,650.97,650.29,2.28694497]
[1749392666721,1.03602116,650.96,650.28,2.28694497]
[1749392666921,1.03602116,650.96,650.29,2.28694497]
[1749392667125,1.56464652,650.97,650.29,2.28694497]
[1749392667326,1.03602116,650.96,650.29,2.28694497]
[1749392667522,1.56464552,650.97,650.29,2.28694497]
[1749392667826,1.03602116,650.96,650.29,2.28694497]
[1749392668222,1.03602116,650.96,650.28,2.28694497]
[1749392668627,1.03602116,650.97,650.28,2.28694497]
[1749392668822,1.03602116,650.96,650.24,2.28694497]
[1749392669024,1.03602116,650.95,650.24,2.28694497]
[1749392669223,1.03602116,650.98,650.24,2.28694497]
[1749392669427,1.03602116,650.97,650.24,2.28694497]
[1749392669624,1.03602116,650.96,650.24,2.28694497]
[1749392669925,1.03602116,650.95,650.24,2.28694497]
[1749392670128,2.7755904,650.99,650.24,2.28694497]
[1749392670423,1.56431131,650.98,650.24,2.28694497]
[1749392670628,1.03602116,650.97,650.24,2.28694497]
[1749392670829,1.03602116,650.96,650.24,2.28694497]
[1749392671028,1.03602116,650.95,650.24,2.28694497]
[1749392671229,1.56429884,650.98,650.24,2.28694497]
[1749392671428,1.03602116,650.97,650.23,2.28694497]
[1749392671626,1.03602116,650.96,650.23,2.28694497]
[1749392671830,1.03602116,650.96,649.72,4.10344959]
[1749392671831,1.03602116,650.97,650.24,2.28694497]
[1749392672026,1.03602116,650.96,650.24,2.28694497]
[1749392672230,1.03602116,650.99,650.24,2.28694497]
[1749392672530,1.03602116,650.98,650.24,2.28694497]
[1749392672730,1.03602116,650.97,650.24,2.28694497]
[1749392673032,1.03602116,650.96,650.24,2.28694497]
[1749392673332,1.03602116,650.95,650.24,2.28694497]
[1749392673630,1.1473303,651.0,650.24,2.28694497]
[1749392673631,1.03602116,650.97,650.24,2.28694497]
[1749392673831,1.03602116,650.96,650.24,2.28694497]
[1749392674030,1.56429702,650.98,650.24,2.28694497]
[1749392674233,1.03602116,650.97,650.24,2.28694497]
[1749392674531,1.03602116,650.96,650.24,2.28694497]
[1749392674732,1.56429703,650.98,650.24,2.28694497]
[1749392674932,1.03602116,650.97,650.24,2.28694497]
[1749392675233,1.03602116,650.96,650.25,2.28694497]
[1749392675530,1.03602116,650.97,650.25,2.28694497]
[1749392675732,1.03602116,650.96,650.26,2.28694497]
[1749392676032,1.03602116,650.97,650.26,2.28694497]
[1749392676228,1.03602116,650.96,650.26,2.28694497]
[1749392676429,2.24582554,650.99,650.26,2.28694497]
[1749392676632,1.03602116,650.98,650.24,2.28694497]
[1749392676830,1.03602116,650.97,650.24,2.28694497]
[1749392677029,1.03602116,650.96,650.24,2.28694497]
[1749392677229,1.03602116,650.95,650.24,2.28694497]
[1749392677428,1.03602116,650.98,650.24,2.28694497]
[1749392677631,1.03602116,650.97,650.24,2.28694497]
[1749392677834,1.03602116,650.96,650.24,2.28694497]
[1749392678035,1.03602116,650.95,650.25,2.28694497]
[1749392678236,1.03602116,650.98,650.25,2.28694497]
[1749392678432,1.03602116,650.97,650.25,2.28694497]
[1749392678730,1.03602116,650.97,649.75,3.8359322]
[1749392678731,1.03602116,650.96,650.27,2.28694497]
[1749392679030,1.03602116,650.97,650.27,2.28694497]
[1749392679236,1.03602116,650.96,650.28,2.28694497]
[1749392679437,1.56447336,650.98,650.28,2.28694497]
[1749392679634,1.03602116,650.97,650.28,2.28694497]
[1749392679833,1.03602116,650.96,650.29,2.28694497]
[1749392680833,1.03602116,650.96,650.28,2.28694497]
[1749392681334,1.03602116,650.96,650.29,2.28694497]
[1749392681734,1.03602116,650.96,650.28,2.28694497]
[1749392681933,1.03602116,650.95,650.28,2.28694497]
[1749392682137,1.03602116,650.96,650.28,2.28694497]
[1749392682639,1.03602116,650.95,650.29,2.28694497]
[1749392682841,1.56462887,650.97,650.29,2.28694497]
[1749392683139,1.03602116,650.96,650.29,2.28694497]
[1749392683336,1.03602116,650.95,650.29,2.28694497]
[1749392683536,1.03602116,650.96,650.29,2.28694497]
[1749392683838,1.03602116,650.95,650.29,2.28694497]
[1749392684035,1.03602116,650.96,650.29,2.28694497]
[1749392684236,1.03602116,650.95,650.29,2.28694497]
[1749392684440,1.03602116,650.96,650.29,2.28694497]
[1749392684641,1.03602116,650.95,650.29,2.28694497]
[1749392684842,1.03602116,650.96,650.29,2.28694497]
[1749392685141,1.03602116,650.95,650.29,2.28694497]
[1749392685441,1.03602116,650.96,650.29,2.28694497]
[1749392685641,1.03602116,650.95,650.29,2.28694497]
[1749392685839,1.03602116,650.96,650.29,2.28694497]
[1749392686041,0.26751122,650.8,650.29,2.28694497]
[1749392686443,0.26751122,650.8,650.31,2.28694497]
[1749392687442,0.26751122,650.8,650.32,2.28694497]
[1749392689544,0.26751122,650.8,650.31,2.28694497]
[1749392689742,0.26751122,650.8,650.29,2.28694497]
[1749392690341,0.26751122,650.8,649.83,3.8359322]
[1749392690342,0.26751122,650.8,650.26,2.28694497]
[1749392690541,0.26751122,650.8,650.27,2.28694497]
[1749392690842,0.26751122,650.8,650.28,2.28694497]
[1749392691545,0.26751122,650.8,650.29,2.28694497]
[1749392693648,0.26751122,650.8,650.28,2.28694497]
[1749392694648,0.26751122,650.8,650.29,2.28694497]
[1749392696351,0.26751122,650.8,650.33,2.28694497]
[1749392697146,0.26751122,650.8,650.32,2.28694497]
[1749392697345,0.26751122,650.8,650.33,2.28694497]
[1749392697752,0.26751122,650.8,650.34,2.28694497]
[1749392698651,0.26751122,650.8,650.35,2.28694497]
[1749392698851,0.26751122,650.8,650.34,2.28694497]
[1749392699153,0.26751122,650.8,650.33,2.28694497]
[1749392699652,0.26751122,650.8,650.35,2.28694497]
[1749392699949,0.26751122,650.8,650.31,2.28694497]
[1749392700149,0.26751122,650.8,650.32,2.28694497]
[1749392700654,0.26751122,650.8,650.33,2.28694497]
[1749392700853,0.26751122,650.8,650.32,2.28694497]
[1749392701051,0.26751122,650.8,650.33,2.28694497]
[1749392702251,0.26751122,650.8,650.32,2.28694497]
[1749392702749,0.26751122,650.8,650.33,2.28694497]
[1749392702949,0.26751122,650.8,650.32,2.28694497]
[1749392704556,0.26751122,650.8,650.31,2.28694497]
[1749392707052,0.26751122,650.8,650.27,2.28694497]
[1749392708255,0.26751122,650.8,650.22,2.28694497]
[1749392708652,0.26751122,650.8,650.21,2.28694497]
[1749392709155,0.26751122,650.8,650.3,2.28694497]
[1749392709555,0.26751122,650.8,650.29,2.28694497]
[1749392709954,0.26751122,650.8,649.72,0.26751739]
[1749392709955,0.26751122,650.8,650.3,2.28694497]
[1749392711154,0.26751122,650.8,650.26,2.28694497]
[1749392711658,0.26751122,650.8,650.25,2.28694497]
[1749392711958,0.26751122,650.8,650.22,2.28694497]
[1749392712959,0.26751122,650.8,650.24,2.28694497]
[1749392713957,0.26751122,650.8,650.3,2.28694497]
[1749392714158,0.26751122,650.8,650.27,2.28694497]
[1749392714357,0.26751122,650.8,650.28,2.28694497]
[1749392714559,0.26751122,650.8,650.27,2.28694497]
[1749392715257,0.26751122,650.8,650.28,2.28694497]
[1749392715654,0.26751122,650.8,650.27,2.28694497]
[1749392716659,0.26751122,650.8,650.26,2.28694497]
[1749392717362,0.26751122,650.8,650.25,2.28694497]
[1749392719566,0.26751122,650.8,650.21,2.28694497]
[1749392721062,0.26751122,650.8,650.24,2.28694497]
[1749392721662,0.26751122,650.8,650.26,2.28694497]
[1749392721866,0.26751122,650.8,650.28,2.28694497]
[1749392722867,0.26751122,650.8,650.27,2.28694497]
[1749392724064,0.26751122,650.8,650.29,2.28694497]
[1749392725067,0.26751122,650.8,649.72,0.26751739]
[1749392725068,0.26751122,650.8,650.26,2.28694497]
[1749392726868,0.26751122,650.8,650.25,2.28694497]
[1749392729069,0.26751122,650.8,650.24,2.28694497]
[1749392729267,0.26751122,650.8,650.27,2.28694497]
[1749392729468,0.26751122,650.8,650.26,2.28694497]
[1749392729765,1.69,650.79,650.26,2.28694497]
[1749392732072,1.69,650.79,650.27,2.28694497]
[1749392732372,1.69,650.79,650.3,2.28694497]
[1749392732568,1.69,650.79,650.31,2.28694497]
[1749392732868,1.69,650.79,650.32,2.28694497]
[1749392733068,1.69,650.79,650.33,2.28694497]
[1749392733669,1.69,650.79,650.42,2.28694497]
[1749392734172,1.69,650.79,650.43,2.28694497]
[1749392734372,1.69,650.79,650.44,2.28694497]
[1749392736170,1.69,650.79,650.45,2.28694497]
[1749392736571,1.69,650.79,650.51,2.28694497]
[1749392737070,1.69,650.79,649.75,5.38520071]
[1749392737071,1.69,650.79,650.42,2.28694497]
[1749392737271,1.69,650.79,650.51,2.28694497]
[1749392737470,1.69,650.79,650.49,2.28694497]
[1749392737674,1.69,650.79,650.47,2.28694497]
[1749392737876,1.69,650.79,650.48,2.28694497]
[1749392738578,1.69,650.79,650.47,2.28694497]
[1749392738977,1.69,650.79,650.46,2.28694497]
[1749392739578,1.69,650.79,650.45,2.28694497]
[1749392739775,1.69,650.79,650.44,2.28694497]
[1749392740575,1.69,650.79,650.43,2.28694497]
[1749392741378,1.69,650.79,650.42,2.28694497]
[1749392741675,1.69,650.79,650.41,2.28694497]
[1749392742679,1.69,650.79,650.4,2.28694497]
[1749392743681,1.69,650.79,650.39,2.28694497]
[1749392744781,1.69,650.79,650.38,2.28694497]
[1749392745585,1.69,650.79,650.39,2.28694497]
[1749392745781,1.69,650.79,650.37,2.28694497]
[1749392746181,1.69,650.79,650.39,2.28694497]
[1749392746481,1.69,650.79,650.37,2.28694497]
[1749392746684,1.69,650.79,650.36,2.28694497]